[Event "Titled Tuesday Blitz March 08 Early 2022"]
[White "Manelyuk, Daniil"]
[Black "Atakhan, Abtin"]
[WhiteFideId "44173920"]
[BlackFideId "22502203"]
[WhiteElo "2222"]
[BlackElo "2119"]
[Result "0-1"]
[Round "05"]
[TimeControl "180+1"]
[Date "2022.03.09"]
[WhiteClock "0:00:02"]
[BlackClock "0:00:35"]

1. e4 {[%clk 0:03:00]}  c6 {[%clk 0:02:59]} 2. d4 {[%clk 0:03:00]}  d5 {[%clk 0:02:59]} 3. Nc3 {[%clk 0:03:00]}  dxe4 {[%clk 0:03:00]} 4. Nxe4 {[%clk 0:03:00]}  Nf6 {[%clk 0:03:01]} 5. Nxf6+ {[%clk 0:03:00]}  exf6 {[%clk 0:03:02]} 6. c3 {[%clk 0:03:00]}  Bd6 {[%clk 0:03:02]} 7. Bd3 {[%clk 0:02:59]}  O-O {[%clk 0:03:03]} 8. Qc2 {[%clk 0:02:59]}  Re8+ {[%clk 0:03:03]} 9. Ne2 {[%clk 0:02:59]}  h5 {[%clk 0:03:04]} 10. O-O {[%clk 0:02:59]}  Nd7 {[%clk 0:03:04]} 11. Be3 {[%clk 0:02:58]}  Nf8 {[%clk 0:03:04]} 12. Rae1 {[%clk 0:02:58]}  h4 {[%clk 0:03:04]} 13. h3 {[%clk 0:02:57]}  Qc7 {[%clk 0:03:03]} 14. Qd2 {[%clk 0:02:52]}  Ng6 {[%clk 0:03:03]} 15. c4 {[%clk 0:02:29]}  Be6 {[%clk 0:02:58]} 16. d5 {[%clk 0:02:11]}  Bd7 {[%clk 0:02:50]} 17. dxc6 {[%clk 0:01:38]}  Bxc6 {[%clk 0:02:48]} 18. Nd4 {[%clk 0:01:38]}  Rad8 {[%clk 0:02:44]} 19. Qc2 {[%clk 0:01:27]}  Ne5 {[%clk 0:02:36]} 20. Bh7+ {[%clk 0:01:17]}  Kh8 {[%clk 0:02:36]} 21. c5 {[%clk 0:01:15]}  Bf8 {[%clk 0:02:16]} 22. Nxc6 {[%clk 0:01:14]}  Nxc6 {[%clk 0:02:12]} 23. Be4 {[%clk 0:01:07]}  Nb4 {[%clk 0:02:10]} 24. Qc4 {[%clk 0:01:03]}  Nc6 {[%clk 0:02:09]} 25. Bxc6 {[%clk 0:01:00]}  Qxc6 {[%clk 0:02:09]} 26. Qxh4+ {[%clk 0:00:59]}  Kg8 {[%clk 0:02:10]} 27. b4 {[%clk 0:00:59]}  Re4 {[%clk 0:02:08]} 28. Qh5 {[%clk 0:00:52]}  Rxb4 {[%clk 0:02:07]} 29. Rd1 {[%clk 0:00:52]}  Re8 {[%clk 0:02:06]} 30. Qf5 {[%clk 0:00:47]}  Re5 {[%clk 0:01:56]} 31. Qd3 {[%clk 0:00:42]}  Bxc5 {[%clk 0:01:52]} 32. Bxc5 {[%clk 0:00:43]}  Rxc5 {[%clk 0:01:43]} 33. a3 {[%clk 0:00:39]}  Re4 {[%clk 0:01:41]} 34. Rfe1 {[%clk 0:00:24]}  Rd5 {[%clk 0:01:35]} 35. Qxd5 {[%clk 0:00:13]}  Rxe1+ {[%clk 0:01:34]} 36. Kh2 {[%clk 0:00:13]}  Rxd1 {[%clk 0:01:27]} 37. Qxd1 {[%clk 0:00:12]}  Qc7+ {[%clk 0:01:26]} 38. g3 {[%clk 0:00:13]}  b5 {[%clk 0:01:26]} 39. Qd5 {[%clk 0:00:12]}  Qb6 {[%clk 0:01:25]} 40. Qa8+ {[%clk 0:00:12]}  Kh7 {[%clk 0:01:25]} 41. Kg2 {[%clk 0:00:13]}  g6 {[%clk 0:01:21]} 42. Qd5 {[%clk 0:00:11]}  Kg7 {[%clk 0:01:21]} 43. h4 {[%clk 0:00:11]}  a5 {[%clk 0:01:21]} 44. h5 {[%clk 0:00:12]}  gxh5 {[%clk 0:01:12]} 45. Qxh5 {[%clk 0:00:10]}  Qb7+ {[%clk 0:01:11]} 46. Kh2 {[%clk 0:00:10]}  b4 {[%clk 0:01:10]} 47. Qg4+ {[%clk 0:00:10]}  Kf8 {[%clk 0:01:10]} 48. axb4 {[%clk 0:00:10]}  axb4 {[%clk 0:01:10]} 49. Qc4 {[%clk 0:00:10]}  Qb6 {[%clk 0:01:06]} 50. Qc8+ {[%clk 0:00:09]}  Ke7 {[%clk 0:01:07]} 51. Qc2 {[%clk 0:00:06]}  b3 {[%clk 0:01:07]} 52. Qe2+ {[%clk 0:00:06]}  Kf8 {[%clk 0:01:07]} 53. Qb2 {[%clk 0:00:06]}  Qb4 {[%clk 0:01:03]} 54. Qxf6 {[%clk 0:00:05]}  Ke8 {[%clk 0:00:45]} 55. Qe5+ {[%clk 0:00:05]}  Kd7 {[%clk 0:00:44]} 56. Qd5+ {[%clk 0:00:05]}  Ke7 {[%clk 0:00:44]} 57. Qe5+ {[%clk 0:00:05]}  Kd8 {[%clk 0:00:42]} 58. Qd5+ {[%clk 0:00:06]}  Kc8 {[%clk 0:00:41]} 59. Qc6+ {[%clk 0:00:05]}  Kb8 {[%clk 0:00:40]} 60. Qe8+ {[%clk 0:00:05]}  Kb7 {[%clk 0:00:38]} 61. Qxf7+ {[%clk 0:00:05]}  Kb6 {[%clk 0:00:38]} 62. Qf6+ {[%clk 0:00:04]}  Kb5 {[%clk 0:00:37]} 63. Qe5+ {[%clk 0:00:02]}  Qc5 {[%clk 0:00:36]} 64. Qe2+ {[%clk 0:00:02]}  Kb4 {[%clk 0:00:35]} 65. Qe5 {[%clk 0:00:02]}  Qxe5 {[%clk 0:00:35]} 0-1


[Site "https://www.chess.com"]

[Event "Titled Tuesday Blitz March 08 Early 2022"]
[White "Marcinczyk, Monika"]
[Black "Gubanov, Oleg"]
[WhiteFideId "1192051"]
[BlackFideId "14115115"]
[WhiteElo "1783"]
[BlackElo "2080"]
[Result "0-1"]
[Round "05"]
[TimeControl "180+1"]
[Date "2022.03.09"]
[WhiteClock "0:00:01"]
[BlackClock "0:00:44"]

1. e4 {[%clk 0:02:38]}  Nf6 {[%clk 0:02:58]} 2. e5 {[%clk 0:02:38]}  Nd5 {[%clk 0:02:58]} 3. d4 {[%clk 0:02:39]}  d6 {[%clk 0:02:58]} 4. c4 {[%clk 0:02:39]}  Nb6 {[%clk 0:02:58]} 5. exd6 {[%clk 0:02:39]}  cxd6 {[%clk 0:02:58]} 6. Nf3 {[%clk 0:02:33]}  g6 {[%clk 0:02:58]} 7. Nc3 {[%clk 0:02:32]}  Bg7 {[%clk 0:02:58]} 8. Be3 {[%clk 0:02:32]}  O-O {[%clk 0:02:58]} 9. Bd3 {[%clk 0:02:23]}  d5 {[%clk 0:02:54]} 10. c5 {[%clk 0:02:21]}  Nc4 {[%clk 0:02:55]} 11. Bxc4 {[%clk 0:02:19]}  dxc4 {[%clk 0:02:55]} 12. Qd2 {[%clk 0:02:05]}  Nc6 {[%clk 0:02:50]} 13. Rd1 {[%clk 0:02:03]}  Bf5 {[%clk 0:02:49]} 14. O-O {[%clk 0:02:01]}  Bd3 {[%clk 0:02:45]} 15. Rfe1 {[%clk 0:02:01]}  Nxd4 {[%clk 0:02:43]} 16. Nxd4 {[%clk 0:01:55]}  Bxd4 {[%clk 0:02:43]} 17. Bxd4 {[%clk 0:01:51]}  Qxd4 {[%clk 0:02:43]} 18. Rxe7 {[%clk 0:01:25]}  Qxc5 {[%clk 0:02:37]} 19. Rxb7 {[%clk 0:01:21]}  Rab8 {[%clk 0:02:37]} 20. Rd7 {[%clk 0:00:58]}  Qb4 {[%clk 0:02:15]} 21. Qh6 {[%clk 0:00:50]}  Qxb2 {[%clk 0:02:04]} 22. Nd5 {[%clk 0:00:46]}  a5 {[%clk 0:01:52]} 23. h4 {[%clk 0:00:31]}  Qg7 {[%clk 0:01:51]} 24. Qg5 {[%clk 0:00:20]}  h6 {[%clk 0:01:47]} 25. Qf4 {[%clk 0:00:19]}  Kh8 {[%clk 0:01:38]} 26. Nf6 {[%clk 0:00:08]}  Bf5 {[%clk 0:01:37]} 27. R7d6 {[%clk 0:00:03]}  c3 {[%clk 0:01:36]} 28. g4 {[%clk 0:00:02]}  c2 {[%clk 0:01:33]} 29. Rc1 {[%clk 0:00:01]}  Be6 {[%clk 0:01:02]} 30. Rxc2 {[%clk 0:00:01]}  Rb4 {[%clk 0:01:02]} 31. Qf3 {[%clk 0:00:01]}  h5 {[%clk 0:00:44]} 32. gxh5 {[%clk 0:00:01]}  gxh5+ {[%clk 0:00:45]} 33. Kf1 {[%clk 0:00:01]}  Bg4 {[%clk 0:00:44]} 0-1


[Site "https://www.chess.com"]

[Event "Titled Tuesday Blitz March 08 Early 2022"]
[White "Mikhalsky, Vladimir"]
[Black "Ibraev, Vasilij"]
[WhiteFideId "14144352"]
[BlackFideId "4175190"]
[WhiteElo "2301"]
[BlackElo "2121"]
[Result "1-0"]
[Round "05"]
[TimeControl "180+1"]
[Date "2022.03.09"]
[WhiteClock "0:00:54"]
[BlackClock "0:00:08"]

1. e4 {[%clk 0:02:59]}  c5 {[%clk 0:02:56]} 2. Nf3 {[%clk 0:02:58]}  e6 {[%clk 0:02:55]} 3. b3 {[%clk 0:02:55]}  Nc6 {[%clk 0:02:46]} 4. Bb2 {[%clk 0:02:55]}  Nf6 {[%clk 0:02:39]} 5. e5 {[%clk 0:02:54]}  Nd5 {[%clk 0:02:36]} 6. c4 {[%clk 0:02:46]}  Nde7 {[%clk 0:02:20]} 7. Nc3 {[%clk 0:02:40]}  b6 {[%clk 0:02:12]} 8. Bd3 {[%clk 0:02:31]}  Ng6 {[%clk 0:02:11]} 9. Nb5 {[%clk 0:02:24]}  Bb7 {[%clk 0:02:03]} 10. O-O {[%clk 0:02:20]}  Be7 {[%clk 0:02:00]} 11. Nd6+ {[%clk 0:02:06]}  Bxd6 {[%clk 0:01:59]} 12. exd6 {[%clk 0:02:06]}  O-O {[%clk 0:01:59]} 13. Bb1 {[%clk 0:02:01]}  Qb8 {[%clk 0:01:51]} 14. d4 {[%clk 0:02:00]}  Qxd6 {[%clk 0:01:46]} 15. dxc5 {[%clk 0:02:00]}  Qxc5 {[%clk 0:01:38]} 16. Qxd7 {[%clk 0:01:59]}  Rab8 {[%clk 0:01:34]} 17. Qd2 {[%clk 0:01:43]}  Rfd8 {[%clk 0:01:24]} 18. Qc3 {[%clk 0:01:42]}  Nd4 {[%clk 0:01:22]} 19. Nxd4 {[%clk 0:01:39]}  e5 {[%clk 0:00:59]} 20. Nf5 {[%clk 0:01:28]}  Qc6 {[%clk 0:00:36]} 21. Qg3 {[%clk 0:01:20]}  f6 {[%clk 0:00:35]} 22. Qxg6 {[%clk 0:01:13]}  hxg6 {[%clk 0:00:33]} 23. Ne7+ {[%clk 0:01:12]}  Kf7 {[%clk 0:00:34]} 24. Nxc6 {[%clk 0:01:12]}  Bxc6 {[%clk 0:00:34]} 25. Bc3 {[%clk 0:01:09]}  g5 {[%clk 0:00:18]} 26. f3 {[%clk 0:01:08]}  e4 {[%clk 0:00:12]} 27. Bxe4 {[%clk 0:01:06]}  Bxe4 {[%clk 0:00:12]} 28. fxe4 {[%clk 0:01:05]}  Rd3 {[%clk 0:00:13]} 29. Rf3 {[%clk 0:01:04]}  Rbd8 {[%clk 0:00:10]} 30. Raf1 {[%clk 0:00:59]}  Rxf3 {[%clk 0:00:07]} 31. Rxf3 {[%clk 0:00:59]}  Ke6 {[%clk 0:00:08]} 32. Kf1 {[%clk 0:00:54]} 1-0


[Site "https://www.chess.com"]

[Event "Titled Tuesday Blitz March 08 Early 2022"]
[White "Mikhnenko, Alexander"]
[Black "Kouskoutis, Georgios-Alexandros"]
[WhiteFideId "34143014"]
[BlackFideId "4234049"]
[WhiteElo "2184"]
[BlackElo "2130"]
[Result "0-1"]
[Round "05"]
[TimeControl "180+1"]
[Date "2022.03.09"]
[WhiteClock "0:00:40"]
[BlackClock "0:00:06"]

1. e4 {[%clk 0:03:00]}  c5 {[%clk 0:02:59]} 2. Nf3 {[%clk 0:03:00]}  e6 {[%clk 0:02:58]} 3. Qe2 {[%clk 0:03:00]}  Nc6 {[%clk 0:02:55]} 4. g3 {[%clk 0:02:54]}  d5 {[%clk 0:01:57]} 5. exd5 {[%clk 0:02:54]}  Qxd5 {[%clk 0:01:56]} 6. Nc3 {[%clk 0:02:53]}  Qd8 {[%clk 0:01:48]} 7. Bg2 {[%clk 0:02:53]}  Nf6 {[%clk 0:01:48]} 8. O-O {[%clk 0:02:53]}  Be7 {[%clk 0:01:48]} 9. d3 {[%clk 0:02:53]}  O-O {[%clk 0:01:48]} 10. Bg5 {[%clk 0:02:52]}  Bd7 {[%clk 0:01:46]} 11. Bxf6 {[%clk 0:02:32]}  Bxf6 {[%clk 0:01:42]} 12. Ne4 {[%clk 0:02:31]}  Be7 {[%clk 0:01:41]} 13. c3 {[%clk 0:02:30]}  Qc7 {[%clk 0:01:33]} 14. Rad1 {[%clk 0:02:28]}  Rfd8 {[%clk 0:01:33]} 15. d4 {[%clk 0:02:24]}  cxd4 {[%clk 0:01:34]} 16. cxd4 {[%clk 0:02:22]}  Be8 {[%clk 0:01:22]} 17. a3 {[%clk 0:02:16]}  h6 {[%clk 0:01:16]} 18. Qe3 {[%clk 0:02:13]}  Rac8 {[%clk 0:00:55]} 19. b4 {[%clk 0:02:09]}  a6 {[%clk 0:00:39]} 20. Nc5 {[%clk 0:02:08]}  a5 {[%clk 0:00:33]} 21. Rb1 {[%clk 0:01:50]}  axb4 {[%clk 0:00:32]} 22. axb4 {[%clk 0:01:51]}  b6 {[%clk 0:00:28]} 23. Na6 {[%clk 0:01:44]}  Qd6 {[%clk 0:00:25]} 24. Rfd1 {[%clk 0:01:37]}  Bf6 {[%clk 0:00:19]} 25. b5 {[%clk 0:01:13]}  Ne7 {[%clk 0:00:19]} 26. Ne5 {[%clk 0:01:11]}  Bxe5 {[%clk 0:00:18]} 27. dxe5 {[%clk 0:01:12]}  Qxd1+ {[%clk 0:00:17]} 28. Rxd1 {[%clk 0:01:12]}  Rxd1+ {[%clk 0:00:18]} 29. Bf1 {[%clk 0:01:12]}  Bxb5 {[%clk 0:00:19]} 30. Nb4 {[%clk 0:00:53]}  Bxf1 {[%clk 0:00:17]} 31. h4 {[%clk 0:00:48]}  Nd5 {[%clk 0:00:13]} 32. Nxd5 {[%clk 0:00:46]}  Bc4+ {[%clk 0:00:12]} 33. Kh2 {[%clk 0:00:44]}  Bxd5 {[%clk 0:00:13]} 34. g4 {[%clk 0:00:44]}  b5 {[%clk 0:00:07]} 35. f4 {[%clk 0:00:40]}  b4 {[%clk 0:00:07]} 36. g5 {[%clk 0:00:40]}  Rc2+ {[%clk 0:00:06]} 0-1


[Site "https://www.chess.com"]

[Event "Titled Tuesday Blitz March 08 Early 2022"]
[White "Mohammad Fahad, Rahman"]
[Black "Hess, Max"]
[WhiteFideId "10207791"]
[BlackFideId "24656666"]
[WhiteElo "2323"]
[BlackElo "2276"]
[Result "0-1"]
[Round "05"]
[TimeControl "180+1"]
[Date "2022.03.09"]
[WhiteClock "0:00:15"]
[BlackClock "0:00:23"]

1. Nf3 {[%clk 0:02:45]}  d5 {[%clk 0:02:59]} 2. b3 {[%clk 0:02:38]}  Nf6 {[%clk 0:02:57]} 3. Bb2 {[%clk 0:02:38]}  e6 {[%clk 0:02:56]} 4. e3 {[%clk 0:02:38]}  Bd6 {[%clk 0:02:55]} 5. d4 {[%clk 0:02:38]}  O-O {[%clk 0:02:46]} 6. Bd3 {[%clk 0:02:37]}  b6 {[%clk 0:02:42]} 7. O-O {[%clk 0:02:37]}  Bb7 {[%clk 0:02:42]} 8. c4 {[%clk 0:02:38]}  Nbd7 {[%clk 0:02:38]} 9. Nc3 {[%clk 0:02:38]}  a6 {[%clk 0:02:37]} 10. Qe2 {[%clk 0:02:36]}  Ne4 {[%clk 0:02:34]} 11. Bxe4 {[%clk 0:02:18]}  dxe4 {[%clk 0:02:34]} 12. Nd2 {[%clk 0:02:18]}  f5 {[%clk 0:02:31]} 13. f3 {[%clk 0:02:18]}  exf3 {[%clk 0:02:25]} 14. Nxf3 {[%clk 0:02:19]}  Nf6 {[%clk 0:02:20]} 15. Rad1 {[%clk 0:02:18]}  Qe8 {[%clk 0:02:17]} 16. d5 {[%clk 0:02:06]}  exd5 {[%clk 0:02:10]} 17. Nxd5 {[%clk 0:02:00]}  Nxd5 {[%clk 0:01:54]} 18. cxd5 {[%clk 0:02:00]}  Qe7 {[%clk 0:01:31]} 19. Nd4 {[%clk 0:01:54]}  Qe5 {[%clk 0:01:03]} 20. Nf3 {[%clk 0:01:32]}  Qe4 {[%clk 0:00:56]} 21. Rd4 {[%clk 0:01:14]}  Qe7 {[%clk 0:00:55]} 22. Kh1 {[%clk 0:01:02]}  Rae8 {[%clk 0:00:55]} 23. Rd3 {[%clk 0:01:01]}  a5 {[%clk 0:00:50]} 24. Nd4 {[%clk 0:00:54]}  Ba6 {[%clk 0:00:30]} 25. Nxf5 {[%clk 0:00:53]}  Rxf5 {[%clk 0:00:29]} 26. Rxf5 {[%clk 0:00:54]}  Bxd3 {[%clk 0:00:29]} 27. Qxd3 {[%clk 0:00:53]}  Qxe3 {[%clk 0:00:30]} 28. Qf1 {[%clk 0:00:27]}  Qe1 {[%clk 0:00:23]} 29. Bd4 {[%clk 0:00:17]}  Qxf1+ {[%clk 0:00:22]} 30. Rxf1 {[%clk 0:00:18]}  Re2 {[%clk 0:00:22]} 31. Bf2 {[%clk 0:00:14]}  Rd2 {[%clk 0:00:21]} 32. g4 {[%clk 0:00:14]}  Rxa2 {[%clk 0:00:19]} 33. Kg2 {[%clk 0:00:11]}  Bc5 {[%clk 0:00:17]} 34. Kf3 {[%clk 0:00:10]}  Rxf2+ {[%clk 0:00:17]} 35. Rxf2 {[%clk 0:00:10]}  Bxf2 {[%clk 0:00:18]} 36. Kxf2 {[%clk 0:00:11]}  Kf8 {[%clk 0:00:18]} 37. Ke3 {[%clk 0:00:12]}  Ke7 {[%clk 0:00:19]} 38. Kd4 {[%clk 0:00:12]}  Kd6 {[%clk 0:00:19]} 39. g5 {[%clk 0:00:13]}  c6 {[%clk 0:00:20]} 40. dxc6 {[%clk 0:00:12]}  Kxc6 {[%clk 0:00:20]} 41. h4 {[%clk 0:00:12]}  b5 {[%clk 0:00:20]} 42. h5 {[%clk 0:00:11]}  Kd6 {[%clk 0:00:18]} 43. h6 {[%clk 0:00:09]}  g6 {[%clk 0:00:18]} 44. Ke4 {[%clk 0:00:04]}  Ke6 {[%clk 0:00:17]} 45. Kd4 {[%clk 0:00:04]}  a4 {[%clk 0:00:17]} 46. bxa4 {[%clk 0:00:03]}  bxa4 {[%clk 0:00:18]} 47. Kc4 {[%clk 0:00:02]}  Kf5 {[%clk 0:00:18]} 48. Kb4 {[%clk 0:00:03]}  Kxg5 {[%clk 0:00:19]} 49. Kxa4 {[%clk 0:00:04]}  Kxh6 {[%clk 0:00:19]} 50. Kb3 {[%clk 0:00:04]}  Kg5 {[%clk 0:00:20]} 51. Kc2 {[%clk 0:00:05]}  Kg4 {[%clk 0:00:20]} 52. Kd2 {[%clk 0:00:06]}  Kg3 {[%clk 0:00:21]} 53. Ke3 {[%clk 0:00:06]}  h5 {[%clk 0:00:20]} 54. Ke2 {[%clk 0:00:07]}  Kg2 {[%clk 0:00:20]} 55. Ke3 {[%clk 0:00:08]}  h4 {[%clk 0:00:20]} 56. Kf4 {[%clk 0:00:08]}  h3 {[%clk 0:00:21]} 57. Kg5 {[%clk 0:00:09]}  h2 {[%clk 0:00:22]} 58. Kxg6 {[%clk 0:00:10]}  h1=Q {[%clk 0:00:23]} 59. Kg5 {[%clk 0:00:10]}  Qh3 {[%clk 0:00:22]} 60. Kf4 {[%clk 0:00:10]}  Qf3+ {[%clk 0:00:21]} 61. Ke5 {[%clk 0:00:11]}  Kg3 {[%clk 0:00:21]} 62. Kd4 {[%clk 0:00:12]}  Qf5 {[%clk 0:00:21]} 63. Ke3 {[%clk 0:00:12]}  Qe5+ {[%clk 0:00:21]} 64. Kd2 {[%clk 0:00:12]}  Kf3 {[%clk 0:00:21]} 65. Kd3 {[%clk 0:00:13]}  Qd5+ {[%clk 0:00:22]} 66. Kc3 {[%clk 0:00:14]}  Ke3 {[%clk 0:00:22]} 67. Kb4 {[%clk 0:00:14]}  Qc6 {[%clk 0:00:22]} 68. Ka5 {[%clk 0:00:14]}  Qb7 {[%clk 0:00:22]} 69. Ka4 {[%clk 0:00:14]}  Kd3 {[%clk 0:00:23]} 70. Ka3 {[%clk 0:00:14]}  Kc3 {[%clk 0:00:23]} 71. Ka2 {[%clk 0:00:15]}  Qb2# {[%clk 0:00:23]} 0-1


[Site "https://www.chess.com"]

[Event "Titled Tuesday Blitz March 08 Early 2022"]
[White "Molina, Roberto Junio Brito"]
[Black "Maevsky, Nikolay"]
[WhiteFideId "2109450"]
[BlackFideId "4198220"]
[WhiteElo "2432"]
[BlackElo "2126"]
[Result "0-1"]
[Round "05"]
[TimeControl "180+1"]
[Date "2022.03.08"]
[WhiteClock "0:00:02"]
[BlackClock "0:00:03"]

1. d4 {[%clk 0:02:48]}  d5 {[%clk 0:03:00]} 2. c4 {[%clk 0:02:43]}  Nc6 {[%clk 0:02:59]} 3. cxd5 {[%clk 0:02:41]}  Qxd5 {[%clk 0:02:58]} 4. e3 {[%clk 0:02:42]}  e5 {[%clk 0:02:58]} 5. Nc3 {[%clk 0:02:42]}  Bb4 {[%clk 0:02:59]} 6. Bd2 {[%clk 0:02:35]}  Bxc3 {[%clk 0:02:58]} 7. Bxc3 {[%clk 0:02:36]}  exd4 {[%clk 0:02:58]} 8. Ne2 {[%clk 0:02:36]}  Nf6 {[%clk 0:02:58]} 9. Nxd4 {[%clk 0:02:36]}  O-O {[%clk 0:02:57]} 10. Qb3 {[%clk 0:02:21]}  Nxd4 {[%clk 0:02:49]} 11. Bxd4 {[%clk 0:02:17]}  Qxb3 {[%clk 0:02:42]} 12. axb3 {[%clk 0:02:17]}  Be6 {[%clk 0:02:41]} 13. Bc4 {[%clk 0:02:11]}  Nd5 {[%clk 0:02:20]} 14. O-O {[%clk 0:02:07]}  a6 {[%clk 0:02:17]} 15. Ra5 {[%clk 0:02:05]}  Rad8 {[%clk 0:02:15]} 16. Rc1 {[%clk 0:02:00]}  c6 {[%clk 0:02:14]} 17. f3 {[%clk 0:01:56]}  Rfe8 {[%clk 0:02:10]} 18. Kf2 {[%clk 0:01:56]}  f5 {[%clk 0:02:03]} 19. Rd1 {[%clk 0:01:48]}  Kf7 {[%clk 0:01:53]} 20. Raa1 {[%clk 0:01:47]}  g5 {[%clk 0:01:42]} 21. h4 {[%clk 0:01:44]}  g4 {[%clk 0:01:42]} 22. Rac1 {[%clk 0:01:36]}  gxf3 {[%clk 0:01:36]} 23. gxf3 {[%clk 0:01:37]}  Rg8 {[%clk 0:01:35]} 24. Rg1 {[%clk 0:01:34]}  Nb4 {[%clk 0:01:30]} 25. Ke2 {[%clk 0:01:29]}  Nd5 {[%clk 0:01:26]} 26. Rcf1 {[%clk 0:01:22]}  Rde8 {[%clk 0:01:19]} 27. e4 {[%clk 0:01:18]}  Nf4+ {[%clk 0:01:19]} 28. Ke3 {[%clk 0:01:18]}  Bxc4 {[%clk 0:01:15]} 29. bxc4 {[%clk 0:01:18]}  Nh5 {[%clk 0:00:43]} 30. e5 {[%clk 0:01:05]}  f4+ {[%clk 0:00:39]} 31. Kf2 {[%clk 0:00:58]}  Ng3 {[%clk 0:00:38]} 32. Re1 {[%clk 0:00:56]}  Ke6 {[%clk 0:00:38]} 33. Bc3 {[%clk 0:00:54]}  Rd8 {[%clk 0:00:37]} 34. Rd1 {[%clk 0:00:52]}  Rxd1 {[%clk 0:00:24]} 35. Rxd1 {[%clk 0:00:53]}  Nf5 {[%clk 0:00:24]} 36. h5 {[%clk 0:00:27]}  Rg5 {[%clk 0:00:23]} 37. Rh1 {[%clk 0:00:27]}  Ng3 {[%clk 0:00:23]} 38. Rh4 {[%clk 0:00:27]}  Nxh5 {[%clk 0:00:19]} 39. Ke2 {[%clk 0:00:24]}  Kf5 {[%clk 0:00:18]} 40. Kf2 {[%clk 0:00:23]}  h6 {[%clk 0:00:15]} 41. b3 {[%clk 0:00:20]}  b5 {[%clk 0:00:14]} 42. Bd4 {[%clk 0:00:19]}  a5 {[%clk 0:00:13]} 43. cxb5 {[%clk 0:00:19]}  cxb5 {[%clk 0:00:13]} 44. Bc3 {[%clk 0:00:20]}  a4 {[%clk 0:00:13]} 45. bxa4 {[%clk 0:00:20]}  bxa4 {[%clk 0:00:13]} 46. Rh1 {[%clk 0:00:21]}  Kg6 {[%clk 0:00:08]} 47. Ra1 {[%clk 0:00:20]}  Ng7 {[%clk 0:00:07]} 48. Rxa4 {[%clk 0:00:19]}  Rh5 {[%clk 0:00:07]} 49. Rxf4 {[%clk 0:00:19]}  Nf5 {[%clk 0:00:07]} 50. e6 {[%clk 0:00:16]}  Rh2+ {[%clk 0:00:05]} 51. Ke1 {[%clk 0:00:15]}  Rc2 {[%clk 0:00:05]} 52. Rg4+ {[%clk 0:00:10]}  Kh5 {[%clk 0:00:05]} 53. Bf6 {[%clk 0:00:06]}  Rc6 {[%clk 0:00:05]} 54. Re4 {[%clk 0:00:06]}  Kg6 {[%clk 0:00:04]} 55. e7 {[%clk 0:00:03]}  Nd6 {[%clk 0:00:03]} 56. Bh4 {[%clk 0:00:02]}  Kf7 {[%clk 0:00:03]} 0-1


[Site "https://www.chess.com"]

[Event "Titled Tuesday Blitz March 08 Early 2022"]
[White "Obad, Andrija"]
[Black "P., Komal Kishore"]
[WhiteFideId "14412276"]
[BlackFideId "5016703"]
[WhiteElo "2270"]
[BlackElo "2141"]
[Result "1-0"]
[Round "05"]
[TimeControl "180+1"]
[Date "2022.03.09"]
[WhiteClock "0:00:08"]
[BlackClock "0:00:01"]

1. e4 {[%clk 0:03:00]}  c6 {[%clk 0:03:00]} 2. d4 {[%clk 0:02:59]}  d5 {[%clk 0:03:01]} 3. Nd2 {[%clk 0:02:59]}  dxe4 {[%clk 0:03:00]} 4. Nxe4 {[%clk 0:03:00]}  Bf5 {[%clk 0:02:59]} 5. Ng3 {[%clk 0:02:59]}  Bg6 {[%clk 0:03:00]} 6. Nh3 {[%clk 0:03:00]}  e6 {[%clk 0:02:59]} 7. Nf4 {[%clk 0:02:59]}  Bd6 {[%clk 0:02:58]} 8. h4 {[%clk 0:02:59]}  Nf6 {[%clk 0:02:56]} 9. h5 {[%clk 0:02:56]}  Bxf4 {[%clk 0:02:55]} 10. Bxf4 {[%clk 0:02:50]}  Bf5 {[%clk 0:02:50]} 11. Nxf5 {[%clk 0:02:46]}  Qa5+ {[%clk 0:02:49]} 12. c3 {[%clk 0:02:45]}  Qxf5 {[%clk 0:02:50]} 13. Bd6 {[%clk 0:02:22]}  Ne4 {[%clk 0:02:42]} 14. Bg3 {[%clk 0:02:13]}  Nxg3 {[%clk 0:02:39]} 15. fxg3 {[%clk 0:02:14]}  Qg5 {[%clk 0:02:31]} 16. Qf3 {[%clk 0:02:07]}  Nd7 {[%clk 0:02:27]} 17. Bd3 {[%clk 0:02:06]}  Nf6 {[%clk 0:02:25]} 18. O-O {[%clk 0:02:00]}  Qxh5 {[%clk 0:02:15]} 19. Qf4 {[%clk 0:01:50]}  O-O {[%clk 0:01:56]} 20. Qh4 {[%clk 0:01:38]}  Qg4 {[%clk 0:01:48]} 21. Bxh7+ {[%clk 0:01:30]}  Kh8 {[%clk 0:01:45]} 22. Bc2+ {[%clk 0:01:29]}  Qxh4 {[%clk 0:01:43]} 23. gxh4 {[%clk 0:01:29]}  Rfd8 {[%clk 0:01:38]} 24. Rae1 {[%clk 0:01:26]}  Rac8 {[%clk 0:01:37]} 25. Re5 {[%clk 0:01:20]}  Kg8 {[%clk 0:01:35]} 26. Bb3 {[%clk 0:01:08]}  b6 {[%clk 0:01:29]} 27. Rg5 {[%clk 0:01:06]}  Nd5 {[%clk 0:01:22]} 28. Rg3 {[%clk 0:00:58]}  Ne7 {[%clk 0:01:16]} 29. h5 {[%clk 0:00:52]}  c5 {[%clk 0:01:14]} 30. dxc5 {[%clk 0:00:48]}  Rxc5 {[%clk 0:01:10]} 31. h6 {[%clk 0:00:48]}  Nf5 {[%clk 0:01:09]} 32. Rxf5 {[%clk 0:00:44]}  Rxf5 {[%clk 0:01:02]} 33. Rxg7+ {[%clk 0:00:44]}  Kf8 {[%clk 0:00:58]} 34. g4 {[%clk 0:00:45]}  Re5 {[%clk 0:00:48]} 35. Kf2 {[%clk 0:00:33]}  Rd2+ {[%clk 0:00:46]} 36. Kf3 {[%clk 0:00:33]}  Ree2 {[%clk 0:00:43]} 37. g5 {[%clk 0:00:31]}  Rg2 {[%clk 0:00:36]} 38. Ba4 {[%clk 0:00:22]}  Rdf2+ {[%clk 0:00:34]} 39. Ke4 {[%clk 0:00:20]}  Rf5 {[%clk 0:00:28]} 40. Rh7 {[%clk 0:00:16]}  Rfxg5 {[%clk 0:00:24]} 41. Rh8+ {[%clk 0:00:15]}  Ke7 {[%clk 0:00:24]} 42. Re8+ {[%clk 0:00:12]}  Kf6 {[%clk 0:00:23]} 43. h7 {[%clk 0:00:12]}  Rh5 {[%clk 0:00:20]} 44. h8=Q+ {[%clk 0:00:07]}  Rxh8 {[%clk 0:00:20]} 45. Rxh8 {[%clk 0:00:08]}  Rxb2 {[%clk 0:00:19]} 46. Bb3 {[%clk 0:00:07]}  a5 {[%clk 0:00:18]} 47. Kd3 {[%clk 0:00:07]}  a4 {[%clk 0:00:17]} 48. Bxa4 {[%clk 0:00:08]}  Rxa2 {[%clk 0:00:17]} 49. Be8 {[%clk 0:00:08]}  Ke7 {[%clk 0:00:16]} 50. Bc6 {[%clk 0:00:07]}  Ra5 {[%clk 0:00:15]} 51. Be4 {[%clk 0:00:05]}  Rc5 {[%clk 0:00:14]} 52. Rh7 {[%clk 0:00:06]}  Kf6 {[%clk 0:00:14]} 53. Bf3 {[%clk 0:00:05]}  e5 {[%clk 0:00:12]} 54. Bh5 {[%clk 0:00:05]}  Rc7 {[%clk 0:00:12]} 55. Bf3 {[%clk 0:00:04]}  Ke7 {[%clk 0:00:10]} 56. Bd5 {[%clk 0:00:04]}  Kf6 {[%clk 0:00:10]} 57. c4 {[%clk 0:00:04]}  Rd7 {[%clk 0:00:09]} 58. Rh6+ {[%clk 0:00:04]}  Ke7 {[%clk 0:00:08]} 59. Rxb6 {[%clk 0:00:05]}  Rc7 {[%clk 0:00:08]} 60. Ke4 {[%clk 0:00:05]}  f6 {[%clk 0:00:07]} 61. Kf5 {[%clk 0:00:06]}  Ra7 {[%clk 0:00:07]} 62. Re6+ {[%clk 0:00:06]}  Kd7 {[%clk 0:00:05]} 63. Rxf6 {[%clk 0:00:06]}  Ra3 {[%clk 0:00:05]} 64. Rf7+ {[%clk 0:00:06]}  Kd6 {[%clk 0:00:04]} 65. Rf6+ {[%clk 0:00:07]}  Kc5 {[%clk 0:00:04]} 66. Kxe5 {[%clk 0:00:07]}  Re3+ {[%clk 0:00:03]} 67. Kf4 {[%clk 0:00:07]}  Re1 {[%clk 0:00:04]} 68. Rc6+ {[%clk 0:00:08]}  Kd4 {[%clk 0:00:04]} 69. Kf5 {[%clk 0:00:08]}  Rc1 {[%clk 0:00:05]} 70. Ke6 {[%clk 0:00:08]}  Rc2 {[%clk 0:00:04]} 71. Kd6 {[%clk 0:00:08]}  Rc3 {[%clk 0:00:04]} 72. Rc8 {[%clk 0:00:08]}  Rh3 {[%clk 0:00:03]} 73. Re8 {[%clk 0:00:09]}  Rh5 {[%clk 0:00:01]} 74. Re4+ {[%clk 0:00:08]}  Kc3 {[%clk 0:00:01]} 75. Rg4 {[%clk 0:00:08]}  Rh6+ {[%clk 0:00:01]} 76. Be6 {[%clk 0:00:08]}  Kb4 {[%clk 0:00:01]} 77. c5+ {[%clk 0:00:08]} 1-0


[Site "https://www.chess.com"]